Cogmind - Beta 14 @@@ ROGUE MODE // 2025.03.09 @ 14:52:27 Player: UberDoot Result: Self-destructed Performance ------------- Evolutions (4) 2000 Regions Visited (10) 2000 Robots Destroyed (155) 775 Value Destroyed (6754) 6754 Prototype IDs (7) 140 Alien Tech Used (0) 0 Bonus (2161) 2161 TOTAL SCORE: 13830 Bonus ------- High Alert Combat Kills 1684 Follower Combat Kills 77 Entered Garrisons 400 Cogmind --------- Core Integrity 453/850 Matter 129/300 Energy 7/100 System Corruption 0% Temperature Cool (7) Movement Treading (160) Location -6/Waste Parts ------- > --- POWER (1) -------- (None) > --- PROPULSION (4) --- Improved Heavy Treads Improved Heavy Treads > --- UTILITY (6) ------ Cargo Storage Unit Improved Sensor Array Advanced Targeting Computer > --- WEAPON (4) ------- Wave Gun > --- INVENTORY (30) --- Improved Heat Sink Advanced Heat Sink Coolant Injector Coolant Injector High-capacity Storage Unit Cargo Storage Unit High-capacity Matter Pod (0) Machine Analyzer Improved Terrain Scanner Seismic Detector Transport Network Coupler Cooled Plasma Cannon Cooled Plasma Cannon Heavy Assault Rifle Gauss Rifle Gauss Rifle Mini Assault Cannon Ripper Peak State ------------ > --- POWER ------------ Improved Deuterium Engine > --- PROPULSION ------- Improved Heavy Treads Armored Wheel Armored Wheel > --- UTILITY ---------- Improved Heat Sink Advanced Heat Sink Cargo Storage Unit Improved Sensor Array Hardened Medium Armor Plating > --- WEAPON ----------- Wave Gun Gauss Rifle Gauss Rifle Railgun > --- INVENTORY -------- Reinforced Deuterium Engine Improved Heavy Treads Improved Heavy Treads Armored Wheel Armored Wheel Armored Wheel Advanced Heat Sink Coolant Injector Coolant Injector High-capacity Storage Unit High-capacity Storage Unit Cargo Storage Unit Compact Battery High-capacity Matter Pod Signal Interpreter Improved Terrain Scanner Seismic Detector Transport Network Coupler Wave Gun Ion Cannon Gauss Rifle Gauss Rifle Gauss Rifle Mini Assault Cannon Heavy Missile Launcher Heavy Missile Launcher Ripper [Rating: 69] Favorites ----------- Power Light Ion Engine Engine Light Ion Engine Power Core Light Nuclear Core Propulsion Light Treads Treads Light Treads Wheel Armored Wheel Utility High-capacity Storage Unit Device Improved Heat Sink Storage High-capacity Storage Unit Processor Signal Interpreter Protection Light Armor Plating Weapon Gauss Rifle Energy Gun Beam Rifle Energy Cannon Beam Cannon Ballistic Gun Gauss Rifle Ballistic Cannon Mini Assault Cannon Launcher Heavy Missile Launcher Slashing Weapon Ripper Build | -11 -10 -10 -10 -9 -8 -8 -7 -7 -6 -6 ------- Run | Yrd Mat Min Exi Min Mat Gar Fac Gar Fac Was Slots Evolved 8 | . . . . . 4 . 2 . 2 . Power . | . . . . . . . . . . . Propulsion 2 | . . . . . 1 . 1 . . . Utility 4 | . . . . . 2 . 1 . 1 . Weapon 2 | . . . . . 1 . . . 1 . Parts Attached 152 | 7 17 3 . 9 14 20 3 41 28 10 Power 12 | 1 2 . . . 2 1 . 3 2 1 Engine 11 | 1 2 . . . 1 1 . 3 2 1 Core 1 | . . . . . 1 . . . . . Reactor . | . . . . . . . . . . . Propulsion 36 | 2 3 . . 1 5 2 1 17 1 4 Treads 22 | 2 3 . . . 4 1 . 10 . 2 Leg . | . . . . . . . . . . . Wheel 14 | . . . . 1 1 1 1 7 1 2 Hover . | . . . . . . . . . . . Flight . | . . . . . . . . . . . Utility 34 | 2 5 2 . 3 2 4 1 9 6 . Device 17 | 1 2 1 . 2 1 2 1 5 2 . Storage 5 | 1 2 . . . . . . 2 . . Processor 2 | . . . . . . . . . 2 . Hackware . | . . . . . . . . . . . Protection 10 | . 1 1 . 1 1 2 . 2 2 . Artifact . | . . . . . . . . . . . Weapon 70 | 2 7 1 . 5 5 13 1 12 19 5 Energy Gun 12 | 1 . . . . 5 2 . 1 1 2 Energy Cannon 3 | . 1 . . . . . . . 1 1 Ballistic Gun 36 | 1 6 1 . 3 . 8 . 4 13 . Ballistic Cannon 4 | . . . . . . . 1 3 . . Launcher 10 | . . . . 2 . 1 . 4 1 2 Special Weapon . | . . . . . . . . . . . Impact Weapon . | . . . . . . . . . . . Slashing Weapon 5 | . . . . . . 2 . . 3 . Piercing Weapon . | . . . . . . . . . . . Special Melee Weapon . | . . . . . . . . . . . Unidentified Prototypes 7 | . . . . . 3 . 1 1 2 . Parts Lost 31 | . 2 1 . . . 2 . 12 6 8 Power 4 | . 1 . . . . . . 1 2 . Propulsion 9 | . . . . . . . . 4 1 4 Utility 8 | . . . . . . 1 . 5 1 1 Weapon 10 | . 1 1 . . . 1 . 2 2 3 Highest Loss Streak 8 | . 1 1 . . . 1 . 4 4 8 To Critical Strikes . | . . . . . . . . . . . Average Slot Usage (%) 93 | . 94 100 100 100 90 93 97 87 85 76 Engine 9 | . 10 14 14 14 8 9 7 6 6 4 Treads 18 | . 28 28 28 14 18 18 15 12 6 5 Wheel 8 | . . . . 13 9 9 15 14 13 10 Device 11 | . 13 2 . 12 9 9 12 16 15 12 Storage 10 | . 14 14 14 14 9 9 7 8 6 6 Protection 5 | . . 11 14 1 9 12 15 2 5 5 Energy Gun 4 | . 2 . . . 10 16 . 2 5 . Ballistic Gun 18 | . 20 28 28 27 16 9 17 12 18 11 Ballistic Cannon 1 | . . . . . . . 4 6 . . Peak Build Rating 69 | 7 10 9 9 13 34 35 35 61 69 63 Average Rating 27 | 5 9 8 9 10 30 31 33 43 65 58 On Entrance 23 | . 7 9 9 9 13 34 30 35 58 59 Naked Turns . | . . . . . . . . . . . Heaviest Build 205 | 14 48 48 48 50 78 78 67 205 183 186 Greatest Support 150 | 40 40 40 40 40 40 40 24 40 24 150 Greatest Overweight (x) 12 | 1 1 1 1 4 7 6 2 8 7 12 Average Overweight (x) 3 | . . 1 1 3 5 4 2 3 7 6 Largest Inventory Capacity 30 | 8 20 20 20 20 20 20 20 30 30 30 Average Capacity 19 | 7 12 20 20 20 20 20 20 22 30 30 Most Carried 30 | 6 17 19 19 20 20 20 20 30 30 29 Average Carried 18 | 3 9 18 19 19 19 19 19 21 28 28 Final Capacity 30 | 8 20 20 20 20 20 20 20 30 30 30 Final Carried 30 | 6 17 19 19 20 20 20 20 30 30 19 Class Distribution -------------------- 45% | Mutant 17% | Scavenger-Gunner 15% | Tank 13% | Scavenger-Tank 4% | Scavenger-Skirmisher Dominant Class ---------------- Mutant | -10/Materials Mutant | -10/Mines Mutant | -10/Exiles Mutant | -9/Mines Tank | -8/Materials Tank | -8/Garrison Scavenger-Tank | -7/Factory Scavenger-Gunner | -7/Garrison Scavenger-Skirmisher | -6/Factory Scavenger-Gunner | -6/Waste Resources | -11 -10 -10 -10 -9 -8 -8 -7 -7 -6 -6 ----------- Run | Yrd Mat Min Exi Min Mat Gar Fac Gar Fac Was Matter Collected 5508 | 303 545 513 . 192 352 428 218 1812 945 200 Remotely . | . . . . . . . . . . . Salvage Created 7749 | 142 768 192 . 77 615 1283 293 2263 1393 723 Parts 341 | 7 62 13 . 8 23 65 8 81 71 3 Haulers Intercepted 4 | . 1 . . . 2 . . . 1 . Recyclers Shooed 7 | 1 2 . . . . . . . 4 . Parts Field Recycled . | . . . . . . . . . . . Retrieved Matter . | . . . . . . . . . . . Parts Self-Destructed . | . . . . . . . . . . . Prevented . | . . . . . . . . . . . Kills | -11 -10 -10 -10 -9 -8 -8 -7 -7 -6 -6 ------- Run | Yrd Mat Min Exi Min Mat Gar Fac Gar Fac Was Combat Hostiles Destroyed 123 | . 15 5 . 7 11 28 3 36 15 3 Guns 81 | . 8 5 . 4 11 24 3 14 12 . Cannons 16 | . 7 . . . . . . 9 . . AOE 25 | . . . . 3 . 4 . 13 3 2 Classes Destroyed 17 | 2 7 . . 1 1 3 . 1 1 1 Worker 8 | . 3 . . . . . . . 5 . Builder 6 | . . . . . . . . . 6 . Tunneler 2 | 2 . . . . . . . . . . Hauler 4 | . 1 . . . 2 . . . 1 . Recycler 5 | 1 1 . . . . . 1 . 2 . Mechanic 2 | . 1 . . . . . . . 1 . Operator 3 | . 1 . . . . . 2 . . . Watcher 3 | . 2 . . . . . . . 1 . Swarmer 34 | . 5 . . 6 2 10 . 8 3 . Grunt 58 | . 10 5 . . 4 8 3 21 7 . Brawler 7 | . . . . . . 3 . 2 2 . Duelist 5 | . . . . . . 3 . 2 . . Sentry 7 | . . . . . 5 2 . . . . Hunter 4 | . . . . . . . . 2 2 . Programmer 4 | . . . . . . 2 . 1 1 . Compactor 3 | . . . . . . . . . . 3 Assembled 1 | . . . . 1 . . . . . . Best Kill Streak 17 | 2 5 3 . 3 3 4 3 17 7 2 Combat Bots Only 17 | . 3 3 . 3 3 4 3 17 4 2 Max Kills in Single Turn 4 | 1 1 1 . 2 1 4 2 2 3 1 Gunslinging 1 | . . . . . . 1 . . . . Exploded 4 | . . . . 2 . 4 . 2 2 1 Melee . | . . . . . . . . . . . Uniques/NPCs Destroyed . | . . . . . . . . . . . Combat | -11 -10 -10 -10 -9 -8 -8 -7 -7 -6 -6 -------- Run | Yrd Mat Min Exi Min Mat Gar Fac Gar Fac Was Hostile Shots Fired 617 | . 100 24 . 16 49 102 14 175 128 9 Missed 161 | . 28 4 . 5 13 30 6 44 31 . Damage Taken 7611 | . 753 296 . 107 563 1040 127 2272 1783 670 Core 1076 | . 138 41 . 18 47 165 14 256 197 200 Absorbed by Shields 83 | . . . . . . . . 83 . . Redirected to Shielding 10 | . . 9 . 1 . . . . . . Regen/Repaired (Parts) 123 | . 123 . . . . . . . . . Core Remaining (%) 60 | 100 . . . 21 . 61 . 61 . . Volleys Fired 473 | 11 83 16 . 14 32 80 12 164 51 10 Largest 4 | 2 2 2 . 2 3 3 3 3 4 4 Hottest 173 | 60 80 40 . 48 145 173 104 115 172 129 Shots Fired 1121 | 22 156 32 . 26 96 208 36 344 181 20 Gun 1009 | 22 131 32 . 24 96 206 32 284 179 3 Cannon 76 | . 25 . . . . . 4 47 . . Launcher 36 | . . . . 2 . 2 . 13 2 17 Special . | . . . . . . . . . . . Kinetic 745 | 11 108 32 . 24 60 60 36 281 131 2 Thermal 340 | 11 48 . . . 36 146 . 50 48 1 Explosive 36 | . . . . 2 . 2 . 13 2 17 Electromagnetic . | . . . . . . . . . . . Robot Hit Streak 51 | 5 11 7 . 3 11 22 8 51 9 12 Robot Miss Streak 8 | 4 5 1 . 3 3 5 3 5 8 1 Penetration Max 1 | . . . . . 1 1 1 1 1 . Secondary Targets 11 | . 1 . . . . 6 1 . 3 . Max Gunslinging Chain 1 | . 1 . . . . 1 1 . 1 . Shots Hit Robots 707 | 11 92 23 . 12 62 123 20 248 104 12 Core Hits 337 | 4 41 9 . 8 23 57 10 125 56 4 Critical Kills 6 | . . . . . 1 1 . 4 . . Critical Parts Destroyed 5 | . . . . 1 1 . . 3 . . Critical Strikes 31 | . . . . 1 6 9 1 11 3 . Burn 16 | . . . . . 4 7 . 2 3 . Destroy 12 | . . . . 1 2 2 . 7 . . Blast 3 | . . . . . . . 1 2 . . Melee Attacks 11 | . . . . . . 3 . . 8 . Impact . | . . . . . . . . . . . Slashing 11 | . . . . . . 3 . . 8 . Piercing . | . . . . . . . . . . . Sneak Attacks . | . . . . . . . . . . . Combat Hostiles . | . . . . . . . . . . . Follow-up Attacks . | . . . . . . . . . . . Damage Inflicted 18332 | 141 1145 290 . 318 974 2530 466 6480 2941 3047 Guns 11268 | 141 795 290 . 172 974 2120 411 3897 2423 45 Cannons 1062 | . 350 . . . . . 55 657 . . Explosions 5995 | . . . . 146 . 410 . 1919 518 3002 Melee . | . . . . . . . . . . . Ramming 7 | . . . . . . . . 7 . . Kinetic 7899 | 63 653 290 . 172 562 583 466 3490 1600 20 Thermal 4431 | 78 492 . . . 412 1537 . 1064 823 25 Explosive 5995 | . . . . 146 . 410 . 1919 518 3002 Electromagnetic . | . . . . . . . . . . . Impact . | . . . . . . . . . . . Slashing . | . . . . . . . . . . . Piercing . | . . . . . . . . . . . Highest Corruption 2 | . . . . . . 1 . 2 . . Average Corruption 1 | . . . . . . 1 . 1 . . Corruption Purged . | . . . . . . . . . . . Corruption Blocked . | . . . . . . . . . . . Effects 21 | . . . . . . 2 . 19 . . Message Errors 7 | . . . . . . . . 7 . . Matter Fused 7 | . . . . . . 1 . 6 . . Heat Flow Errors 2 | . . . . . . . . 2 . . Energy Discharges 2 | . . . . . . 1 . 1 . . Data Loss (minor) 1 | . . . . . . . . 1 . . Misfires 1 | . . . . . . . . 1 . . Weapon Failures 1 | . . . . . . . . 1 . . Overload Shots . | . . . . . . . . . . . Overflow Damage 75 | . . . . . . 18 . 31 . 26 Projectiles 14 | . . . . . . . . 14 . . Explosions 61 | . . . . . . 18 . 17 . 26 Melee . | . . . . . . . . . . . Knockbacks 4 | . . . . . . . . 4 . . Impact . | . . . . . . . . . . . Kinetic 4 | . . . . . . . . 4 . . Secondary . | . . . . . . . . . . . Self-Inflicted Damage 501 | . . . . 12 . . . 184 . 305 Shots 13 | . . . . 1 . . . 5 . 7 Rammed 2 | . . . . . . . . 2 . . Targets Rammed 2 | . . . . . . . . 2 . . Kicked . | . . . . . . . . . . . Crushed . | . . . . . . . . . . . Highest Temperature 355 | . 141 20 . 13 130 228 19 177 355 44 Average Temperature 62 | . 48 4 . 9 25 67 6 41 95 12 Received Heat Transfer 2396 | . 306 174 . 40 207 264 108 855 442 . Effects 2 | . . . . . . . . . 2 . Interference 2 | . . . . . . . . . 2 . Siege Activations . | . . . . . . . . . . . Robots Corrupted . | . . . . . . . . . . . Combat Hostiles . | . . . . . . . . . . . Parts Fried . | . . . . . . . . . . . Impact Corruptions . | . . . . . . . . . . . Robots Melted 1 | . . . . . . 1 . . . . Combat Hostiles . | . . . . . . . . . . . Parts Melted 10 | . 1 . . . 2 5 . 2 . . Heat Transferred 9972 | 175 1065 . . . 1332 4107 . 1776 1480 37 Parts Sabotaged . | . . . . . . . . . . . Parts Stolen . | . . . . . . . . . . . Parts Stripped . | . . . . . . . . . . . Power Chain Reactions . | . . . . . . . . . . . Alert | -11 -10 -10 -10 -9 -8 -8 -7 -7 -6 -6 ------- Run | Yrd Mat Min Exi Min Mat Gar Fac Gar Fac Was Peak Influence 1977 | 15 236 79 . 101 245 1228 776 1977 1190 431 Initial 1037 | . 9 19 . . . 129 644 553 1037 409 Average 544 | 4 81 27 . 55 98 685 725 1417 1013 407 Maximum Alert Level 5 | . 1 . . . 1 4 3 5 4 2 Low Security (%) 49 | 100 97 100 . 100 96 5 . . . . Level 1 3 | . 2 . . . 3 12 . . . 13 Level 2 9 | . . . . . . 33 27 11 . 86 Level 3 18 | . . . . . . 34 72 7 90 . Level 4 10 | . . . . . . 12 . 41 9 . Level 5 7 | . . . . . . . . 39 . . High Security . | . . . . . . . . . . . Max Security . | . . . . . . . . . . . Squads Dispatched 13 | . 4 . . . 4 . 1 . 4 . Investigation 3 | . 2 . . . . . 1 . . . Extermination 1 | . . . . . . . . . 1 . Reinforcement 5 | . 2 . . . 1 . . . 2 . Assault 1 | . . . . . . . . . 1 . Garrison 3 | . . . . . 3 . . . . . Intercept . | . . . . . . . . . . . Searches Triggered . | . . . . . . . . . . . Construction Impeded . | . . . . . . . . . . . Haulers Reinforced 1 | . . . . . . . . . 1 . Active Scanning Responses . | . . . . . . . . . . . Cargo Convoy Interrupts . | . . . . . . . . . . . Stealth | -11 -10 -10 -10 -9 -8 -8 -7 -7 -6 -6 --------- Run | Yrd Mat Min Exi Min Mat Gar Fac Gar Fac Was Distress Signals 3 | . . . . 2 1 . . . . . Communications Jammed . | . . . . . . . . . . . Distress Signals . | . . . . . . . . . . . Times Spotted 164 | . 31 5 . 7 13 34 5 42 24 3 Peak Tracking Total 9 | . 5 3 . 3 3 5 3 9 4 3 Tactical Retreats 14 | . . . . 1 2 3 . 7 1 . Traps | -11 -10 -10 -10 -9 -8 -8 -7 -7 -6 -6 ------- Run | Yrd Mat Min Exi Min Mat Gar Fac Gar Fac Was Traps Triggered 17 | . 1 . . . 1 8 . 4 3 . Indirectly . | . . . . . . . . . . . Trap Hack Attempts . | . . . . . . . . . . . Triggered . | . . . . . . . . . . . Disarmed . | . . . . . . . . . . . Reprogrammed . | . . . . . . . . . . . Reused . | . . . . . . . . . . . Traps Extracted . | . . . . . . . . . . . Installed . | . . . . . . . . . . . Triggered . | . . . . . . . . . . . Machines | -11 -10 -10 -10 -9 -8 -8 -7 -7 -6 -6 ---------- Run | Yrd Mat Min Exi Min Mat Gar Fac Gar Fac Was Machines Disabled 17 | . . . . 1 . 6 1 9 . . Max in Single Turn 1 | . . . . 1 . 1 1 1 . . Garrison Relay 9 | . . . . . . 5 . 4 . . Machines Repaired . | . . . . . . . . . . . Machines Dismantled . | . . . . . . . . . . . Machines Sabotaged . | . . . . . . . . . . . Overloaded Fab Kills . | . . . . . . . . . . . Hacking | -11 -10 -10 -10 -9 -8 -8 -7 -7 -6 -6 --------- Run | Yrd Mat Min Exi Min Mat Gar Fac Gar Fac Was Machines Accessed 23 | . 9 . 1 1 2 2 3 2 3 . Terminals 16 | . 6 . . . 1 2 2 2 3 . Fabricators . | . . . . . . . . . . . Repair Stations 1 | . 1 . . . . . . . . . Recycling Units 2 | . 2 . . . . . . . . . Scanalyzers . | . . . . . . . . . . . Garrison Access 2 | . . . . . 1 . 1 . . . Total Hacks 46 | . 23 . 1 1 4 5 4 3 5 . Successful 19 | . 12 . 1 1 2 1 1 . 1 . Failed 27 | . 11 . . . 2 4 3 3 4 . Catastrophic 7 | . 1 . . . . 2 1 1 2 . Database Lockouts . | . . . . . . . . . . . Manual 22 | . 11 . . . 3 . 3 1 4 . Terminals 35 | . 16 . . . 3 5 3 3 5 . Fabricators . | . . . . . . . . . . . Repair Stations 5 | . 5 . . . . . . . . . Recycling Units 2 | . 2 . . . . . . . . . Scanalyzers . | . . . . . . . . . . . Garrison Access 2 | . . . . . 1 . 1 . . . Terminal Hacks 7 | . 4 . 1 1 . 1 . . . . Record 1 | . . . 1 . . . . . . . Part Schematic 1 | . 1 . . . . . . . . . Open Door 2 | . . . . 1 . 1 . . . . Locate Traps 1 | . 1 . . . . . . . . . Hauler Manifests 1 | . 1 . . . . . . . . . Zone Layout 1 | . 1 . . . . . . . . . Fabricator Hacks . | . . . . . . . . . . . Repair Station Hacks 4 | . 4 . . . . . . . . . Scan Component 2 | . 2 . . . . . . . . . Repair 2 | . 2 . . . . . . . . . Recycling Unit Hacks 2 | . 2 . . . . . . . . . Retrieve Components 2 | . 2 . . . . . . . . . Scanalyzer . | . . . . . . . . . . . Garrison Access Hacks 2 | . . . . . 1 . 1 . . . Unlock Access 2 | . . . . . 1 . 1 . . . Unauthorized Hacks 4 | . 2 . . . 1 . . . 1 . Terminals 4 | . 2 . . . 1 . . . 1 . Botnet 4 | . 2 . . . 1 . . . 1 . Fabricators . | . . . . . . . . . . . Repair Stations . | . . . . . . . . . . . Recycling Units . | . . . . . . . . . . . Scanalyzers . | . . . . . . . . . . . Garrison Access . | . . . . . . . . . . . Data Cores Recovered 2 | . 1 . . . . . 1 . . . Used . | . . . . . . . . . . . Hacking Detections 17 | . 6 . . . 1 2 3 2 3 . Full Trace Events 2 | . 1 . . . . . 1 . . . Feedback Events . | . . . . . . . . . . . Feedback Blocked . | . . . . . . . . . . . Robot Schematics Acquired . | . . . . . . . . . . . Robots Built . | . . . . . . . . . . . Authchips . | . . . . . . . . . . . Time . | . . . . . . . . . . . Total Robot Build Rating . | . . . . . . . . . . . Part Schematics Acquired 1 | . 1 . . . . . . . . . Parts Built . | . . . . . . . . . . . Authchips . | . . . . . . . . . . . Time . | . . . . . . . . . . . Total Part Build Rating . | . . . . . . . . . . . Parts Repaired 2 | . 2 . . . . . . . . . Time 26 | . 26 . . . . . . . . . Parts Recycled . | . . . . . . . . . . . Recycled Matter . | . . . . . . . . . . . Retrieved Matter . | . . . . . . . . . . . Retrieved Components 20 | . 20 . . . . . . . . . Parts Scanalyzed . | . . . . . . . . . . . Part Schematics Acquired . | . . . . . . . . . . . Parts Damaged . | . . . . . . . . . . . Bothacking | -11 -10 -10 -10 -9 -8 -8 -7 -7 -6 -6 ------------ Run | Yrd Mat Min Exi Min Mat Gar Fac Gar Fac Was Used RIF Installer . | . . . . . . . . . . . Robots Hacked . | . . . . . . . . . . . Non-combat . | . . . . . . . . . . . Combat . | . . . . . . . . . . . Robot Hacks Applied . | . . . . . . . . . . . Relay Couplers Released 40 | . . . . . . 19 . 21 . . Machine Destruction 36 | . . . . . . 19 . 17 . . Programmers 4 | . . . . . . . . 4 . . Fabnet Peak Effective % . | . . . . . . . . . . . Robots Rewired 2 | . . . . . . 2 . . . . Allies Hacked . | . . . . . . . . . . . Hacks Repelled . | . . . . . . . . . . . Allies | -11 -10 -10 -10 -9 -8 -8 -7 -7 -6 -6 -------- Run | Yrd Mat Min Exi Min Mat Gar Fac Gar Fac Was Total Allies 3 | . . . . . . 2 . . . 1 Largest Group 2 | . . . . . . 2 . . . 1 Highest-Rated Group 56 | . . . . . . 56 . . . 31 Highest-Rated Ally 31 | . . . . . . 31 . . . 31 Total Orders . | . . . . . . . . . . . Ally Attacks 24 | . . . . . . 11 . . . 13 Total Damage 430 | . . . . . . 182 . . . 248 Kills 3 | . . . . . . 3 . . . . Allies Corrupted . | . . . . . . . . . . . Allies Melted 1 | . . . . . . 1 . . . . Intel | -11 -10 -10 -10 -9 -8 -8 -7 -7 -6 -6 ------- Run | Yrd Mat Min Exi Min Mat Gar Fac Gar Fac Was Robot Analysis Total . | . . . . . . . . . . . Derelict Logs Recovered 1 | . . 1 . . . . . . . . Drone Launches . | . . . . . . . . . . . Drone Recoveries . | . . . . . . . . . . . Exploration | -11 -10 -10 -10 -9 -8 -8 -7 -7 -6 -6 ------------- Run | Yrd Mat Min Exi Min Mat Gar Fac Gar Fac Was Turns Passed 10409 | 156 1899 1075 336 1205 658 1756 268 1895 1018 143 Spaces Moved 4219 | 67 808 328 141 336 248 742 177 934 389 49 Core 3 | 3 . . . . . . . . . . Treads 1532 | 64 808 328 141 28 22 121 . 19 . 1 Legs . | . . . . . . . . . . . Wheels 2684 | . . . . 308 226 621 177 915 389 48 Hover . | . . . . . . . . . . . Flight . | . . . . . . . . . . . Fastest Speed 50 | 50 160 240 240 140 170 150 120 120 195 195 Average Speed 176 | 155 183 240 240 148 186 186 120 140 195 197 Slowest Speed 270 | 160 240 240 240 240 245 245 120 245 195 270 Overloaded Moves . | . . . . . . . . . . . Propulsion Burnouts . | . . . . . . . . . . . Robots Hopped . | . . . . . . . . . . . Cave-ins Triggered . | . . . . . . . . . . . Exploration Rate (%) 43 | 5 94 55 50 55 17 77 5 78 10 29 Regions Visited 10 Branch Regions 3 Pre-discovered Areas 1 | . . . 1 . . . . . . . Known Exits Taken 2 | . . . . . 1 . 1 . . . Unknown Exits Taken 5 | 1 1 1 1 1 . . . . . . Scrap Searched 2 | . . . . 2 . . . . . . Spaces Dug 45 | . . . . 9 . 1 . 27 8 . Terrain Destroyed 359 | . . . . 24 . 21 1 151 44 118 Melee 9 | . . . . . . 1 . . 8 . Projectile 42 | . . . . 1 . 4 1 13 23 . AOE 308 | . . . . 23 . 16 . 138 13 118 Terrain Rammed . | . . . . . . . . . . . Walls Destroyed . | . . . . . . . . . . . Machines Disabled . | . . . . . . . . . . . Actions | -11 -10 -10 -10 -9 -8 -8 -7 -7 -6 -6 --------- Run | Yrd Mat Min Exi Min Mat Gar Fac Gar Fac Was Total 6259 | 93 1080 584 140 1016 376 953 206 1214 524 73 Wait 1166 | 3 135 233 . 650 59 40 10 9 25 2 Move 4212 | 66 807 327 140 335 248 741 177 933 389 49 Hop . | . . . . . . . . . . . Pick Up 87 | 6 18 4 . 3 9 13 2 22 9 1 Fast Attach 41 | 7 8 . . 1 2 4 1 11 7 . Attach 40 | . 2 1 . . 3 5 2 10 8 9 Detach 21 | . 3 . . 1 1 3 1 7 5 . Swap 71 | . 7 2 . 8 9 11 . 20 13 1 Drop 87 | . 17 1 . 4 13 17 1 24 9 1 Fire 473 | 11 83 16 . 14 32 80 12 164 51 10 Melee 11 | . . . . . . 3 . . 8 . Ram . | . . . . . . . . . . . Kick . | . . . . . . . . . . . Crush 2 | . . . . . . . . 2 . . Escape Stasis 27 | . . . . . . 16 . 11 . . Rewire 21 | . . . . . . 20 . 1 . . Trap . | . . . . . . . . . . . Miscellaneous . | . . . . . . . . . . . Route ------- -11/Scrapyard -10/Materials (discovered 4 exits: [*Mat x3] / [*Min]) -10/Mines (discovered 2 exits: [*Mat] / *Exi) -10/Exiles (discovered 2 exits: *Min x2) -9/Mines -8/Materials (discovered 2 exits: Fac / Gar) -8/Garrison (discovered 3 exits: *Fac x3) -7/Factory -7/Garrison (discovered 3 exits: *Fac x3) -6/Factory -6/Waste History --------- Turn | Location | Event 25 | -11/Scrapyard | Discovered new exit (range 16) 157 | -11/Scrapyard | Entered Materials 310 | -10/Materials | Build established: Mutant 648 | -10/Materials | Discovered new exit (range 15) 775 | -10/Materials | Discovered new exit (range 11) 1024 | -10/Materials | Discovered new exit (range 10) 1380 | -10/Materials | Core integrity fell below 50% 1575 | -10/Materials | Discovered new exit (range 12) 1626 | -10/Materials | Repaired Lgt. Treads 1641 | -10/Materials | Repaired Lgt. Treads 2056 | -10/Materials | Entered Mines 2087 | -10/Mines | Learned location of 1 exit from Materials 2140 | -10/Mines | Excavation squad dispatched 2140 | -10/Mines | A large section of the Mines collapsed 2366 | -10/Mines | Discovered new exit (range 16) 2400 | -10/Mines | Received a Rocket Launcher from a helpful Derelict 3121 | -10/Mines | Deemed a non-threat by the Exiles lab entrance 3121 | -10/Mines | Discovered new exit (range 5) 3131 | -10/Mines | Entered Exiles 3163 | -10/Exiles | Discovered new exit (range 15) 3191 | -10/Exiles | Met 8R-AWN 3227 | -10/Exiles | Met EX-HEX 3340 | -10/Exiles | Met EX-DEC 3347 | -10/Exiles | Learned location of Zion (-7) 3441 | -10/Exiles | Discovered new exit (range 14) 3467 | -10/Exiles | Entered Mines 3485 | -9/Mines | Met a Derelict bent on vengeance 3535 | -9/Mines | Assembled infested the area 4314 | -9/Mines | Met a Derelict who couldn't figure out how to use a Trap Extractor 4407 | -9/Mines | A weapon hastily lodged in a ceiling crevice suddenly fell to the ground 4657 | -9/Mines | Discovered new exit (range 11) 4672 | -9/Mines | Entered Materials 4672 | -8/Materials | Evolved 4 slots: Propulsion x1, Utility x2, Weapon x1 4673 | -8/Materials | Identified exit to Factory 4966 | -8/Materials | Build established: Tank 5042 | -8/Materials | Garrison activated, responded to threat 5330 | -8/Materials | Identified exit to Garrison 5330 | -8/Materials | Entered Garrison 5472 | -8/Garrison | Triggered checkpoint 5492 | -8/Garrison | Triggered checkpoint 5519 | -8/Garrison | Garrison Relay disabled 5798 | -8/Garrison | Triggered checkpoint 5835 | -8/Garrison | Garrison Relay disabled 5866 | -8/Garrison | Triggered checkpoint 5966 | -8/Garrison | Triggered checkpoint 5984 | -8/Garrison | Garrison Relay disabled 6041 | -8/Garrison | Discovered exit to Factory (range 11) 6106 | -8/Garrison | Triggered checkpoint 6239 | -8/Garrison | Triggered checkpoint 6384 | -8/Garrison | Discovered exit to Factory (range 8) 6418 | -8/Garrison | Triggered checkpoint 6579 | -8/Garrison | Garrison Relay disabled 6621 | -8/Garrison | Build established: Scavenger-Tank 6704 | -8/Garrison | Triggered checkpoint 6782 | -8/Garrison | Triggered checkpoint 6846 | -8/Garrison | Triggered checkpoint 7004 | -8/Garrison | Triggered checkpoint 7008 | -8/Garrison | Garrison Relay disabled 7058 | -8/Garrison | Discovered exit to Factory (range 12) 7086 | -8/Garrison | Entered Factory 7086 | -7/Factory | Evolved 2 slots: Propulsion x1, Utility x1 7354 | -7/Factory | Identified exit to Garrison 7354 | -7/Factory | Entered Garrison 7432 | -7/Garrison | Triggered checkpoint 7444 | -7/Garrison | Garrison Relay disabled 7542 | -7/Garrison | Triggered checkpoint 7668 | -7/Garrison | Destroyed 17 combat bots 7674 | -7/Garrison | Lost 3 parts (1p2u) 7773 | -7/Garrison | Discovered new exit (range 10) 7800 | -7/Garrison | Triggered checkpoint 7868 | -7/Garrison | Lost 4 parts (1n1u2w) 7922 | -7/Garrison | Garrison Relay disabled 8068 | -7/Garrison | Triggered checkpoint 8152 | -7/Garrison | Build established: Scavenger-Gunner 8164 | -7/Garrison | Triggered checkpoint 8260 | -7/Garrison | Garrison Relay disabled 8307 | -7/Garrison | Discovered new exit (range 8) 8412 | -7/Garrison | Discovered new exit (range 13) 8488 | -7/Garrison | Triggered checkpoint 8676 | -7/Garrison | Garrison Relay disabled 9249 | -7/Garrison | Entered Factory 9249 | -6/Factory | Evolved 2 slots: Utility x1, Weapon x1 9907 | -6/Factory | Build established: Scavenger-Skirmisher 9949 | -6/Factory | First assault squad dispatched 10267 | -6/Factory | Sucked down chute 10267 | -6/Factory | Entered Waste 10268 | -6/Waste | Met a frightened Derelict 10287 | -6/Waste | Lost 4 parts (1p1n1u1w) 10338 | -6/Waste | Spotted C-40 Crusher 10340 | -6/Waste | Destroyed C-40 Crusher 10343 | -6/Waste | Spotted C-40 Crusher 10347 | -6/Waste | Spotted C-40 Crusher 10354 | -6/Waste | Spotted C-40 Crusher 10365 | -6/Waste | Build established: Scavenger-Gunner 10376 | -6/Waste | Destroyed C-40 Crusher 10384 | -6/Waste | Crushed by Compactor (1 part destroyed) 10387 | -6/Waste | Crushed by Compactor (1 part destroyed, 1 dropped) 10390 | -6/Waste | Crushed by Compactor (1 part destroyed, 1 dropped) 10395 | -6/Waste | Destroyed C-40 Crusher 10395 | -6/Waste | Crushed by Compactor (1 part destroyed, 1 dropped) 10398 | -6/Waste | Crushed by Compactor (1 part destroyed, 1 dropped) 10404 | -6/Waste | Crushed by Compactor (0 parts destroyed, 1 dropped) 10407 | -6/Waste | Crushed by Compactor (0 parts destroyed, 2 dropped) 10410 | -6/Waste | Self-destructed Last Messages --------------- 10395_ The unstable cave ceiling collapses. 10395_ C-40 Crusher crushed by falling debris. 10395_ C-40 Crusher destroyed. 10395_ Hrd. Medium Armor Plating crushed. 10395_ Adv. Heat Sink crushed. 10395_ Gauss Rifle crushed. 10396_ The unstable cave ceiling collapses. 10396_ Hvy. Assault Rifle destroyed. 10396_ Destroyed Hvy. Assault Rifle. 10396_ Hvy. Missile Launcher destroyed. 10396_ Destroyed Hvy. Missile Launcher. 10398_ Arm. Wheel crushed. 10399_ The unstable cave ceiling collapses. 10399_ Acquired Hcp. Matter Pod. 10400_ The unstable cave ceiling collapses. 10401_ Arm. Wheel crushed. 10404_ Wave Gun crushed. 10407_ Lgt. Angular Momentum Engine crushed. 10407_ Cld. Plasma Cannon crushed. 10409_ The unstable cave ceiling collapses. Map ----- +----------------------------------------------------+ | ?????????????????????????????????????????????????? | | ?????????????????????????????????????????????????? | | ?????????????????????????????????????????????????? | | ?????????????????????????????????????????????????? | | ?????????????????????????????????????????????????? | | ?????????????????????????????????????????????????? | | ?????????????????????????????????????????????????? | | ?????????????????????######??????????????????????? | | ?????????????????????# #???????????#??????????? | | ?????????????????????# #?????????? #???#??????? | | ?????????????????????# #????????? ## ??????? | | ?????????????????????# #???????? ????? | | ???????????????????### ######## ????? | | ???????????????????# ???? | | ???????????????????# ???? | | ???????????????????# % ???? | | ???????????????????# ???? | | ???????????????????# #### ???? | | ???????????????????# ##???? ?????? | | ???????????????????# #??????# ?????? | | ???????????????????# #?????????? ??????? | | ???????????????????# # # #?????????????????? | | ???????????????????# % #?????????????????? | | ???????????????????# CC* # #?????????????????? | | ???????????????????# CC[[ ##?????????????????? | | ???????????????????# ]@ #??????????????????? | | ???????????????????# #??????????????????? | | ???????############## ##??????????????????? | | ???????# #?# ###???????????????????? | | ???????# #?## ##?????????????????????? | | ???????# #### #??????????????????????? | | ???????# !#??????????????????????? | | ???????# #??????????????????????? | | ???????# #??????????????????????? | | ???????# #??????????????????????? | | ???????# #### #??????????????????????? | | ???????# #??# #??????????????????????? | | ???????# #??# #??????????????????????? | | ???????############??# #??????????????????????? | | ?????????????????????# #??????????????????????? | | ?????????????????????######??????????????????????? | | ?????????????????????????????????????????????????? | | ?????????????????????????????????????????????????? | | ?????????????????????????????????????????????????? | | ?????????????????????????????????????????????????? | | ?????????????????????????????????????????????????? | | ?????????????????????????????????????????????????? | | ?????????????????????????????????????????????????? | | ?????????????????????????????????????????????????? | | ?????????????????????????????????????????????????? | +----------------------------------------------------+ Best States ------------- Heat Dissipation 81 Energy Generation 16 Energy Capacity 290 Matter Stores 300 Matter Capacity 300 Sight Range 16 Robot Scan Range 15 Terrain Scan Density 10 Armor Coverage 600 Core Shielding 20 Evasion (%) 40 Targeting Accuracy 8 Recoil Reduction 4 Item Schematics ----------------- Huge Storage Unit | -10/Materials | Hacked Robot Schematics ------------------ None Fabricated ------------ Nothing Alien Tech Used ----------------- None Achievements -------------- None Challenges ------------ None Game ------ Seed GrenadePropulsionAccelerator Manual? 0 Play Time 01:05:41 Cumulative 142.6 hours Start 2025.03.09 @ 13:48:45 End 2025.03.09 @ 14:52:27 Sessions 1 Manual Loads 0 Difficulty Rogue Special Mode None Game No. 82 Rogue 82 Adventurer 0 Explorer 0 Win Type - Total 3 Types 3/0/0/0/0/0/0/0/0 Lore% 59 Gallery% 67 Achievement% 55 Wizard Run 0 Options --------- Layout 0 ASCII 1 Keyboard 1 Movement Numpad Keybinds 0 Fullscreen 2 Font 20/Terminus Map View 66x50 Zoom Use 0% Tactical HUD 1 Map Filters NONE Filters NONE Steam 1 RUN: 90bb910b-f788-417b-8b00-f917f444034d